[Event "Late-Titled-Tuesday-Blitz-June-18-2024"]
[Site "Chess.com"]
[Date "2024.06.18"]
[Round "7"]
[White "JoakimVonAnd"]
[Black "bazar-wokzal"]
[Result "1-0"]
[WhiteElo "2748"]
[BlackElo "2597"]
[TimeControl "180+1"]
[EndTime "15:19:55 PDT"]
[Termination "JoakimVonAnd won by checkmate"]

1. d4 {[%clk 0:03:00.9]} 1... Nf6 {[%clk 0:02:58.9]} 2. c4 {[%clk 0:03:00.7]}
2... Nc6 {[%clk 0:02:58.6]} 3. Nf3 {[%clk 0:02:58.5]} 3... e6 {[%clk 0:02:58.9]}
4. Nc3 {[%clk 0:02:54.9]} 4... Bb4 {[%clk 0:02:58.7]} 5. e3 {[%clk 0:02:54.9]}
5... Bxc3+ {[%clk 0:02:58.4]} 6. bxc3 {[%clk 0:02:54.7]} 6... b6 {[%clk
0:02:58.2]} 7. Bd3 {[%clk 0:02:54.4]} 7... Na5 {[%clk 0:02:57.9]} 8. e4 {[%clk
0:02:53.5]} 8... d6 {[%clk 0:02:47.5]} 9. O-O {[%clk 0:02:50.4]} 9... Ba6 {[%clk
0:02:45.8]} 10. Bg5 {[%clk 0:02:44.1]} 10... Qd7 {[%clk 0:02:34.6]} 11. e5
{[%clk 0:02:31.4]} 11... Ng8 {[%clk 0:02:30.5]} 12. Qe2 {[%clk 0:02:18.2]} 12...
Ne7 {[%clk 0:02:23.8]} 13. Rfe1 {[%clk 0:02:09.8]} 13... h6 {[%clk 0:02:10.6]}
14. Bh4 {[%clk 0:01:59.4]} 14... g5 {[%clk 0:01:59.7]} 15. Bg3 {[%clk
0:01:59.1]} 15... d5 {[%clk 0:01:59.6]} 16. cxd5 {[%clk 0:01:53.3]} 16... Bxd3
{[%clk 0:01:59.7]} 17. Qxd3 {[%clk 0:01:52.6]} 17... Nxd5 {[%clk 0:01:54.7]} 18.
c4 {[%clk 0:01:45.3]} 18... Ne7 {[%clk 0:01:51]} 19. Qe4 {[%clk 0:01:37.1]}
19... Rd8 {[%clk 0:01:47.5]} 20. Rac1 {[%clk 0:01:29.9]} 20... Qa4 {[%clk
0:01:26.1]} 21. Qe2 {[%clk 0:01:24]} 21... Nf5 {[%clk 0:01:07.4]} 22. d5 {[%clk
0:01:22.2]} 22... g4 {[%clk 0:00:57.4]} 23. Nd2 {[%clk 0:01:16.9]} 23... Qxa2
{[%clk 0:00:57.7]} 24. Bf4 {[%clk 0:01:02.2]} 24... h5 {[%clk 0:00:54.2]} 25.
Bg5 {[%clk 0:00:49.6]} 25... Rd7 {[%clk 0:00:51.1]} 26. Ne4 {[%clk 0:00:48.5]}
26... Qxe2 {[%clk 0:00:47.4]} 27. Nf6+ {[%clk 0:00:48.5]} 27... Kd8 {[%clk
0:00:46.7]} 28. Nxd7+ {[%clk 0:00:47.6]} 28... Kxd7 {[%clk 0:00:46.9]} 29. Rxe2
{[%clk 0:00:47.5]} 29... Rg8 {[%clk 0:00:41]} 30. Bf6 {[%clk 0:00:45.4]} 30...
Nb3 {[%clk 0:00:37.3]} 31. Rb1 {[%clk 0:00:38.2]} 31... Nc5 {[%clk 0:00:26.9]}
32. Kf1 {[%clk 0:00:31.4]} 32... a5 {[%clk 0:00:26.3]} 33. Rd2 {[%clk
0:00:23.8]} 33... a4 {[%clk 0:00:20.3]} 34. dxe6+ {[%clk 0:00:17.6]} 34... Kxe6
{[%clk 0:00:20.1]} 35. Bd8 {[%clk 0:00:18.3]} 35... Nb3 {[%clk 0:00:13.6]} 36.
Rd3 {[%clk 0:00:15.7]} 36... Nc5 {[%clk 0:00:13.3]} 37. Rdd1 {[%clk 0:00:15.5]}
37... Na6 {[%clk 0:00:10.5]} 38. Ra1 {[%clk 0:00:11.7]} 38... Kxe5 {[%clk
0:00:09.8]} 39. Rxa4 {[%clk 0:00:11.1]} 39... Nc5 {[%clk 0:00:10.1]} 40. Raa1
{[%clk 0:00:11.4]} 40... Ne6 {[%clk 0:00:09.4]} 41. Rd5+ {[%clk 0:00:06.8]}
41... Kf4 {[%clk 0:00:09.3]} 42. g3+ {[%clk 0:00:06.3]} 42... Kf3 {[%clk
0:00:07.7]} 43. Rxf5+ {[%clk 0:00:03.3]} 43... Ke4 {[%clk 0:00:07.5]} 44. Rd5
{[%clk 0:00:03]} 44... Rxd8 {[%clk 0:00:06.8]} 45. Re1+ {[%clk 0:00:03.6]} 45...
Kf3 {[%clk 0:00:06.1]} 46. Re3# {[%clk 0:00:04.2]} 1-0

[Event "Late-Titled-Tuesday-Blitz-June-18-2024"]
[Site "Chess.com"]
[Date "2024.06.18"]
[Round "7"]
[White "artin10862"]
[Black "Hikaru"]
[Result "0-1"]
[WhiteElo "2938"]
[BlackElo "3293"]
[TimeControl "180+1"]
[EndTime "15:19:56 PDT"]
[Termination "Hikaru won on time"]

1. c4 {[%clk 0:03:00.9]} 1... e5 {[%clk 0:02:56]} 2. Nc3 {[%clk 0:02:55.9]} 2...
Nf6 {[%clk 0:02:51.8]} 3. e3 {[%clk 0:02:50.4]} 3... d5 {[%clk 0:02:48.8]} 4.
cxd5 {[%clk 0:02:50]} 4... Nxd5 {[%clk 0:02:49.7]} 5. Qh5 {[%clk 0:02:49.3]}
5... Nb4 {[%clk 0:02:40.9]} 6. Qxe5+ {[%clk 0:02:46.4]} 6... Be7 {[%clk
0:02:41.2]} 7. Qe4 {[%clk 0:02:44.1]} 7... g6 {[%clk 0:02:33.9]} 8. Qb1 {[%clk
0:02:34.6]} 8... Bf5 {[%clk 0:02:32.5]} 9. e4 {[%clk 0:02:33.6]} 9... Be6 {[%clk
0:02:32.1]} 10. Nf3 {[%clk 0:02:16.9]} 10... c5 {[%clk 0:02:25.5]} 11. Bb5+
{[%clk 0:02:12.6]} 11... N4c6 {[%clk 0:02:18.5]} 12. d3 {[%clk 0:02:11.4]} 12...
O-O {[%clk 0:02:13.8]} 13. h3 {[%clk 0:02:07.7]} 13... a6 {[%clk 0:02:02]} 14.
Bc4 {[%clk 0:02:05.7]} 14... b5 {[%clk 0:02:02.7]} 15. Bd5 {[%clk 0:02:01.7]}
15... b4 {[%clk 0:01:56.6]} 16. Bxe6 {[%clk 0:02:01.2]} 16... fxe6 {[%clk
0:01:55.7]} 17. Nd1 {[%clk 0:02:00.7]} 17... Ra7 {[%clk 0:01:54.8]} 18. Bh6
{[%clk 0:01:43]} 18... Rf7 {[%clk 0:01:49]} 19. Ne3 {[%clk 0:01:35.8]} 19... Rd7
{[%clk 0:01:48.5]} 20. O-O {[%clk 0:01:19.3]} 20... Rxf3 {[%clk 0:01:36.1]} 21.
gxf3 {[%clk 0:01:18.7]} 21... Bg5 {[%clk 0:01:36.8]} 22. Bxg5 {[%clk 0:01:12.1]}
22... Qxg5+ {[%clk 0:01:37.7]} 23. Kh1 {[%clk 0:01:11.4]} 23... Ne5 {[%clk
0:01:10.8]} 24. Rg1 {[%clk 0:01:04.1]} 24... Qf4 {[%clk 0:01:02.7]} 25. Rg3
{[%clk 0:01:03.7]} 25... Nxd3 {[%clk 0:01:02.7]} 26. Qc2 {[%clk 0:00:58.5]}
26... Nc6 {[%clk 0:01:02.6]} 27. Rd1 {[%clk 0:00:48]} 27... Nce5 {[%clk
0:01:01.8]} 28. Kg2 {[%clk 0:00:43.1]} 28... Rd4 {[%clk 0:00:26.6]} 29. Ng4
{[%clk 0:00:31.4]} 29... c4 {[%clk 0:00:26.9]} 30. b3 {[%clk 0:00:26]} 30...
Nxg4 {[%clk 0:00:26.9]} 31. Rxg4 {[%clk 0:00:23.3]} 31... Qd6 {[%clk 0:00:26.8]}
32. bxc4 {[%clk 0:00:16.5]} 32... Nf4+ {[%clk 0:00:24.7]} 33. Rxf4 {[%clk
0:00:16.6]} 33... Rxd1 {[%clk 0:00:25.6]} 34. e5 {[%clk 0:00:14.2]} 34... Qd3
{[%clk 0:00:19]} 35. Qxd3 {[%clk 0:00:11]} 35... Rxd3 {[%clk 0:00:19.9]} 36. c5
{[%clk 0:00:09.3]} 36... a5 {[%clk 0:00:20.2]} 37. Rc4 {[%clk 0:00:06.8]} 37...
Rc3 {[%clk 0:00:19]} 38. Rd4 {[%clk 0:00:03.5]} 38... Rxc5 {[%clk 0:00:19.9]}
39. f4 {[%clk 0:00:03.9]} 39... Rc2 {[%clk 0:00:19.3]} 40. Rd6 {[%clk
0:00:04.2]} 40... Rxa2 {[%clk 0:00:18.5]} 41. Rxe6 {[%clk 0:00:04.6]} 41... b3
{[%clk 0:00:19.2]} 42. Rb6 {[%clk 0:00:04.8]} 42... a4 {[%clk 0:00:19.8]} 43. e6
{[%clk 0:00:04.6]} 43... Kf8 {[%clk 0:00:20.4]} 44. Rb7 {[%clk 0:00:03.5]} 44...
b2 {[%clk 0:00:20.8]} 45. Kf3 {[%clk 0:00:03.3]} 45... a3 {[%clk 0:00:21.1]} 46.
Ke4 {[%clk 0:00:01.5]} 46... Ra1 {[%clk 0:00:21.2]} 47. f5 {[%clk 0:00:01.7]}
47... b1=Q+ {[%clk 0:00:20.9]} 48. Rxb1 {[%clk 0:00:02.1]} 48... Rxb1 {[%clk
0:00:21.8]} 0-1

[Event "Late-Titled-Tuesday-Blitz-June-18-2024"]
[Site "Chess.com"]
[Date "2024.06.18"]
[Round "7"]
[White "js20000"]
[Black "OparinGrigoriy"]
[Result "0-1"]
[WhiteElo "2807"]
[BlackElo "3015"]
[TimeControl "180+1"]
[EndTime "15:19:58 PDT"]
[Termination "OparinGrigoriy won by checkmate"]

1. e4 {[%clk 0:02:54.4]} 1... c5 {[%clk 0:03:00.4]} 2. Nf3 {[%clk 0:02:54.3]}
2... Nc6 {[%clk 0:03:00.9]} 3. Bb5 {[%clk 0:02:53.6]} 3... e5 {[%clk 0:03:01.5]}
4. c3 {[%clk 0:02:48.8]} 4... a6 {[%clk 0:03:00.4]} 5. Ba4 {[%clk 0:02:46.8]}
5... b5 {[%clk 0:03:00.7]} 6. Bb3 {[%clk 0:02:46.8]} 6... c4 {[%clk 0:02:55.5]}
7. Bc2 {[%clk 0:02:46.1]} 7... Nf6 {[%clk 0:02:56.2]} 8. b3 {[%clk 0:02:41.2]}
8... d5 {[%clk 0:02:54.6]} 9. exd5 {[%clk 0:02:40.7]} 9... Qxd5 {[%clk
0:02:55.5]} 10. bxc4 {[%clk 0:02:39.5]} 10... bxc4 {[%clk 0:02:56.4]} 11. O-O
{[%clk 0:02:39.5]} 11... Bc5 {[%clk 0:02:54.8]} 12. Ba4 {[%clk 0:02:33.8]} 12...
O-O {[%clk 0:02:53.7]} 13. Ba3 {[%clk 0:02:32.7]} 13... Bb7 {[%clk 0:02:50.2]}
14. Bxc5 {[%clk 0:02:28.4]} 14... Qxc5 {[%clk 0:02:51.1]} 15. Qe2 {[%clk
0:02:28.1]} 15... Rfe8 {[%clk 0:02:25.5]} 16. Qe3 {[%clk 0:02:28]} 16... Qa5
{[%clk 0:02:25.7]} 17. Bc2 {[%clk 0:02:18.5]} 17... e4 {[%clk 0:02:25.5]} 18.
Nd4 {[%clk 0:02:16.7]} 18... Ne5 {[%clk 0:02:25.4]} 19. Qg3 {[%clk 0:02:12.5]}
19... Nd3 {[%clk 0:02:16.7]} 20. a4 {[%clk 0:02:03.7]} 20... Re5 {[%clk
0:02:14]} 21. Na3 {[%clk 0:01:58]} 21... Rg5 {[%clk 0:02:13.4]} 22. Nxc4 {[%clk
0:01:48.1]} 22... Qc5 {[%clk 0:02:12.7]} 23. Qe3 {[%clk 0:01:41.3]} 23... Ng4
{[%clk 0:02:09.8]} 24. Nb3 {[%clk 0:01:32.7]} 24... Qc7 {[%clk 0:02:08.1]} 25.
Qg3 {[%clk 0:01:25]} 25... Qxc4 {[%clk 0:02:07.5]} 26. h3 {[%clk 0:01:23.5]}
26... e3 {[%clk 0:01:28.4]} 27. fxe3 {[%clk 0:00:59.2]} 27... h5 {[%clk
0:00:57.4]} 28. e4 {[%clk 0:00:40.5]} 28... Rd8 {[%clk 0:00:53.6]} 29. hxg4
{[%clk 0:00:15.2]} 29... Rxg4 {[%clk 0:00:54.5]} 30. Bxd3 {[%clk 0:00:15.4]}
30... Rxd3 {[%clk 0:00:35.6]} 31. Qb8+ {[%clk 0:00:15.1]} 31... Bc8 {[%clk
0:00:36.1]} 32. Nd4 {[%clk 0:00:13.9]} 32... Kh7 {[%clk 0:00:29.3]} 33. Qe5
{[%clk 0:00:10.5]} 33... Rdg3 {[%clk 0:00:17.1]} 34. Qxh5+ {[%clk 0:00:08.9]}
34... Kg8 {[%clk 0:00:17.7]} 35. Rf2 {[%clk 0:00:08.8]} 35... Bb7 {[%clk
0:00:16.2]} 36. Qe5 {[%clk 0:00:03.6]} 36... Bxe4 {[%clk 0:00:14.8]} 37. Nf5
{[%clk 0:00:01.1]} 37... Rxg2+ {[%clk 0:00:14.8]} 38. Rxg2 {[%clk 0:00:01.4]}
38... Rxg2+ {[%clk 0:00:15.1]} 39. Kh1 {[%clk 0:00:02]} 39... Rxd2+ {[%clk
0:00:10.2]} 40. Kg1 {[%clk 0:00:01.5]} 40... Rg2+ {[%clk 0:00:10.6]} 41. Kh1
{[%clk 0:00:01.6]} 41... Ra2+ {[%clk 0:00:10.7]} 42. Kg1 {[%clk 0:00:01.8]}
42... Rxa1+ {[%clk 0:00:11]} 43. Kh2 {[%clk 0:00:02.7]} 43... Rh1+ {[%clk
0:00:09.9]} 44. Kg3 {[%clk 0:00:02.8]} 44... Qd3+ {[%clk 0:00:10.4]} 45. Kf4
{[%clk 0:00:02.6]} 45... Qf3+ {[%clk 0:00:10.8]} 46. Kg5 {[%clk 0:00:03.1]}
46... Rg1+ {[%clk 0:00:10.5]} 47. Ng3 {[%clk 0:00:02.8]} 47... Rxg3+ {[%clk
0:00:10.2]} 48. Qxg3 {[%clk 0:00:03.6]} 48... Qxg3+ {[%clk 0:00:10.8]} 49. Kh5
{[%clk 0:00:04.4]} 49... Bg6# {[%clk 0:00:11.2]} 0-1

[Event "Late-Titled-Tuesday-Blitz-June-18-2024"]
[Site "Chess.com"]
[Date "2024.06.18"]
[Round "7"]
[White "monomita"]
[Black "newyorkmouse"]
[Result "0-1"]
[WhiteElo "2751"]
[BlackElo "2606"]
[TimeControl "180+1"]
[EndTime "15:19:58 PDT"]
[Termination "newyorkmouse won on time"]

1. d4 {[%clk 0:03:00.9]} 1... Nf6 {[%clk 0:02:58]} 2. Nc3 {[%clk 0:03:01.7]}
2... d5 {[%clk 0:02:57.5]} 3. Bf4 {[%clk 0:03:01.1]} 3... c5 {[%clk 0:02:53.2]}
4. e3 {[%clk 0:02:59.7]} 4... cxd4 {[%clk 0:02:53.4]} 5. exd4 {[%clk 0:02:58.9]}
5... Bg4 {[%clk 0:02:54]} 6. Nf3 {[%clk 0:02:54]} 6... Nc6 {[%clk 0:02:51]} 7.
Bb5 {[%clk 0:02:46.8]} 7... e6 {[%clk 0:02:45.6]} 8. h3 {[%clk 0:02:45.3]} 8...
Bxf3 {[%clk 0:02:45.2]} 9. Qxf3 {[%clk 0:02:46.2]} 9... Bd6 {[%clk 0:02:45]} 10.
O-O-O {[%clk 0:02:40.6]} 10... a6 {[%clk 0:02:38.1]} 11. Be2 {[%clk 0:02:34.8]}
11... b5 {[%clk 0:02:33.7]} 12. g4 {[%clk 0:02:32.9]} 12... Bxf4+ {[%clk
0:02:29.9]} 13. Qxf4 {[%clk 0:02:32.5]} 13... Qa5 {[%clk 0:02:30.4]} 14. g5
{[%clk 0:02:30.8]} 14... Nd7 {[%clk 0:02:25.4]} 15. Rhe1 {[%clk 0:02:26.9]}
15... b4 {[%clk 0:02:17]} 16. Nxd5 {[%clk 0:02:26.7]} 16... Qxd5 {[%clk
0:02:07.5]} 17. Bf3 {[%clk 0:02:26.9]} 17... Qc4 {[%clk 0:02:07.6]} 18. Qd6
{[%clk 0:02:12.7]} 18... Rc8 {[%clk 0:02:01]} 19. Bd5 {[%clk 0:02:00]} 19... Qb5
{[%clk 0:01:25]} 20. Bxe6 {[%clk 0:01:55.2]} 20... fxe6 {[%clk 0:01:24.8]} 21.
Rxe6+ {[%clk 0:01:56.1]} 21... Kd8 {[%clk 0:01:25.1]} 22. d5 {[%clk 0:01:56.4]}
22... Nb8 {[%clk 0:00:59.9]} 23. Qe7+ {[%clk 0:01:47.2]} 23... Kc7 {[%clk
0:01:00]} 24. Qxg7 {[%clk 0:01:45.5]} 24... Rhe8 {[%clk 0:00:54.3]} 25. Qxh7
{[%clk 0:01:44.6]} 25... Kb7 {[%clk 0:00:51]} 26. g6 {[%clk 0:01:35.8]} 26...
Rh8 {[%clk 0:00:44.2]} 27. Qe7 {[%clk 0:01:27.8]} 27... Qc4 {[%clk 0:00:32.2]}
28. Re2 {[%clk 0:01:21.1]} 28... Qxa2 {[%clk 0:00:27.3]} 29. Qxb4+ {[%clk
0:01:15]} 29... Ka8 {[%clk 0:00:27.6]} 30. Re3 {[%clk 0:00:55.5]} 30... a5
{[%clk 0:00:15.5]} 31. Qd4 {[%clk 0:00:49.8]} 31... Nc5 {[%clk 0:00:12.6]} 32.
g7 {[%clk 0:00:43.1]} 32... Nb3+ {[%clk 0:00:09.6]} 33. Rxb3 {[%clk 0:00:39.4]}
33... Qxb3 {[%clk 0:00:10.5]} 34. Qe4 {[%clk 0:00:23.3]} 34... Rhe8 {[%clk
0:00:04.5]} 35. g8=Q {[%clk 0:00:15.2]} 35... Rxc2+ {[%clk 0:00:02.9]} 36. Qxc2
{[%clk 0:00:14.4]} 36... Qxc2+ {[%clk 0:00:03.6]} 37. Kxc2 {[%clk 0:00:15.1]}
37... Rxg8 {[%clk 0:00:04.3]} 38. Kd3 {[%clk 0:00:15.1]} 38... Rg2 {[%clk
0:00:03.6]} 39. Rf1 {[%clk 0:00:12.5]} 39... Rh2 {[%clk 0:00:04]} 40. f4 {[%clk
0:00:10.3]} 40... Rxh3+ {[%clk 0:00:04.6]} 41. Kd4 {[%clk 0:00:06.7]} 41... Nd7
{[%clk 0:00:05.2]} 42. d6 {[%clk 0:00:04.6]} 42... Kb7 {[%clk 0:00:05.6]} 43.
Kd5 {[%clk 0:00:05]} 43... Rd3+ {[%clk 0:00:05.6]} 0-1

[Event "Late-Titled-Tuesday-Blitz-June-18-2024"]
[Site "Chess.com"]
[Date "2024.06.18"]
[Round "7"]
[White "SpeedofLight0"]
[Black "dretch"]
[Result "1-0"]
[WhiteElo "3039"]
[BlackElo "2841"]
[TimeControl "180+1"]
[EndTime "15:20:03 PDT"]
[Termination "SpeedofLight0 won on time"]

1. c4 {[%clk 0:03:00.9]} 1... c6 {[%clk 0:02:59.7]} 2. d4 {[%clk 0:02:58.7]}
2... d5 {[%clk 0:03:00.2]} 3. Nf3 {[%clk 0:02:59.6]} 3... Nf6 {[%clk 0:03:00.4]}
4. e3 {[%clk 0:02:59.8]} 4... Bf5 {[%clk 0:02:58.9]} 5. Nc3 {[%clk 0:02:59.9]}
5... e6 {[%clk 0:02:59.3]} 6. Nh4 {[%clk 0:03:00.4]} 6... Bg6 {[%clk 0:02:59.7]}
7. Nxg6 {[%clk 0:02:54.7]} 7... hxg6 {[%clk 0:02:59.5]} 8. Qb3 {[%clk
0:02:55.3]} 8... Qc7 {[%clk 0:02:58.7]} 9. Bd2 {[%clk 0:02:54.6]} 9... Nbd7
{[%clk 0:02:58.2]} 10. O-O-O {[%clk 0:02:51.4]} 10... dxc4 {[%clk 0:02:42.9]}
11. Bxc4 {[%clk 0:02:50.5]} 11... b5 {[%clk 0:02:42.9]} 12. Be2 {[%clk
0:02:50.2]} 12... a6 {[%clk 0:02:43.3]} 13. Kb1 {[%clk 0:02:49.5]} 13... c5
{[%clk 0:02:43.2]} 14. Rc1 {[%clk 0:02:48]} 14... c4 {[%clk 0:02:39.9]} 15. Qc2
{[%clk 0:02:47.3]} 15... Rxh2 {[%clk 0:02:35.7]} 16. e4 {[%clk 0:02:38.7]} 16...
Rxh1 {[%clk 0:02:28.9]} 17. Rxh1 {[%clk 0:02:37.8]} 17... Nb6 {[%clk 0:02:23.9]}
18. d5 {[%clk 0:02:23.7]} 18... exd5 {[%clk 0:02:12.1]} 19. e5 {[%clk
0:02:20.8]} 19... Qxe5 {[%clk 0:01:12.3]} 20. Re1 {[%clk 0:02:19.2]} 20... Be7
{[%clk 0:01:10.7]} 21. Bxc4 {[%clk 0:02:08.8]} 21... Qc7 {[%clk 0:00:56]} 22.
Bd3 {[%clk 0:01:27]} 22... b4 {[%clk 0:00:42.8]} 23. Na4 {[%clk 0:01:26.9]}
23... Qxc2+ {[%clk 0:00:41.6]} 24. Bxc2 {[%clk 0:01:27.3]} 24... Rb8 {[%clk
0:00:17.1]} 25. Bxb4 {[%clk 0:01:19.9]} 25... Nc8 {[%clk 0:00:12.5]} 26. Bc3
{[%clk 0:00:42.8]} 26... Kf8 {[%clk 0:00:11.4]} 27. Bd3 {[%clk 0:00:36.2]} 27...
Bb4 {[%clk 0:00:05.2]} 28. Bxa6 {[%clk 0:00:31.1]} 28... Nd6 {[%clk 0:00:05]}
29. Rd1 {[%clk 0:00:23.2]} 29... Nde4 {[%clk 0:00:03.5]} 30. Bd4 {[%clk
0:00:20.3]} 30... Ra8 {[%clk 0:00:03.4]} 31. Bb5 {[%clk 0:00:20.3]} 31... Ra5
{[%clk 0:00:03.7]} 32. Bc6 {[%clk 0:00:19.6]} 32... Ra6 {[%clk 0:00:04.1]} 33.
Bb5 {[%clk 0:00:16.4]} 33... Ra5 {[%clk 0:00:04.6]} 34. Bc6 {[%clk 0:00:16]}
34... Ra6 {[%clk 0:00:04.9]} 35. Rc1 {[%clk 0:00:16.3]} 35... Nd2+ {[%clk
0:00:04.7]} 36. Ka1 {[%clk 0:00:17]} 36... Nc4 {[%clk 0:00:05]} 37. Bb5 {[%clk
0:00:16.7]} 37... Ra5 {[%clk 0:00:05.4]} 38. Bxc4 {[%clk 0:00:12.9]} 38... dxc4
{[%clk 0:00:06.3]} 39. Nb6 {[%clk 0:00:12.5]} 39... Rg5 {[%clk 0:00:06.4]} 40.
g3 {[%clk 0:00:11.7]} 40... Ne4 {[%clk 0:00:06.6]} 41. Nxc4 {[%clk 0:00:11.2]}
41... Rf5 {[%clk 0:00:07.1]} 42. Rc2 {[%clk 0:00:10.6]} 42... Bc5 {[%clk
0:00:04.3]} 43. Bxc5+ {[%clk 0:00:05.6]} 43... Rxc5 {[%clk 0:00:05.2]} 44. b3
{[%clk 0:00:05.2]} 44... Rf5 {[%clk 0:00:05.4]} 45. a4 {[%clk 0:00:03.6]} 45...
Rxf2 {[%clk 0:00:05.2]} 46. Rxf2 {[%clk 0:00:02.7]} 46... Nxf2 {[%clk
0:00:06.1]} 47. a5 {[%clk 0:00:03.4]} 47... Nd3 {[%clk 0:00:02.2]} 48. a6 {[%clk
0:00:03.9]} 1-0

[Event "Late-Titled-Tuesday-Blitz-June-18-2024"]
[Site "Chess.com"]
[Date "2024.06.18"]
[Round "7"]
[White "ZverevLev"]
[Black "BilodeauA"]
[Result "1-0"]
[WhiteElo "2757"]
[BlackElo "2993"]
[TimeControl "180+1"]
[EndTime "15:20:03 PDT"]
[Termination "ZverevLev won by resignation"]

1. e4 {[%clk 0:02:47.7]} 1... e5 {[%clk 0:02:59.6]} 2. Nf3 {[%clk 0:02:47.8]}
2... Nc6 {[%clk 0:03:00.3]} 3. Bc4 {[%clk 0:02:48.2]} 3... Bc5 {[%clk 0:03:00]}
4. d3 {[%clk 0:02:47.6]} 4... Nf6 {[%clk 0:03:00]} 5. O-O {[%clk 0:02:47.5]}
5... d6 {[%clk 0:03:00.4]} 6. c3 {[%clk 0:02:47.2]} 6... h6 {[%clk 0:02:59.9]}
7. a4 {[%clk 0:02:46]} 7... a5 {[%clk 0:02:59.4]} 8. Be3 {[%clk 0:02:46.1]} 8...
Bxe3 {[%clk 0:02:53.3]} 9. fxe3 {[%clk 0:02:47]} 9... Be6 {[%clk 0:02:50.3]} 10.
Bb5 {[%clk 0:02:45.6]} 10... O-O {[%clk 0:02:49.8]} 11. Nbd2 {[%clk 0:02:45.6]}
11... Ne7 {[%clk 0:02:50]} 12. d4 {[%clk 0:02:43.5]} 12... Ng6 {[%clk
0:02:50.1]} 13. h3 {[%clk 0:02:40.4]} 13... c6 {[%clk 0:02:43]} 14. Bd3 {[%clk
0:02:39.9]} 14... Nh7 {[%clk 0:02:42.6]} 15. Nc4 {[%clk 0:02:38.3]} 15... Qc7
{[%clk 0:02:38.7]} 16. Qe1 {[%clk 0:02:28.5]} 16... Rae8 {[%clk 0:02:35.1]} 17.
Nh4 {[%clk 0:02:24.7]} 17... Nxh4 {[%clk 0:02:21.6]} 18. Qxh4 {[%clk 0:02:25.6]}
18... f6 {[%clk 0:02:14.3]} 19. Nd2 {[%clk 0:02:21.5]} 19... Kh8 {[%clk
0:02:08.7]} 20. Qg3 {[%clk 0:02:19]} 20... Bg8 {[%clk 0:02:00.1]} 21. Nf3 {[%clk
0:02:17.3]} 21... Ng5 {[%clk 0:01:56]} 22. Nh4 {[%clk 0:02:16.6]} 22... Bh7
{[%clk 0:01:55.6]} 23. Nf5 {[%clk 0:02:10.2]} 23... Bxf5 {[%clk 0:01:50.1]} 24.
exf5 {[%clk 0:02:08.5]} 24... d5 {[%clk 0:01:44.8]} 25. h4 {[%clk 0:02:06.9]}
25... Nf7 {[%clk 0:01:44.9]} 26. c4 {[%clk 0:01:46.6]} 26... Qb6 {[%clk
0:01:39.1]} 27. Qf2 {[%clk 0:01:44.2]} 27... Rd8 {[%clk 0:01:21.1]} 28. cxd5
{[%clk 0:01:40]} 28... cxd5 {[%clk 0:01:20.9]} 29. Rac1 {[%clk 0:01:33.3]} 29...
Rfe8 {[%clk 0:01:19.2]} 30. Rc5 {[%clk 0:01:32.2]} 30... Qb4 {[%clk 0:01:07.9]}
31. Rc7 {[%clk 0:01:01.6]} 31... Re7 {[%clk 0:01:07.2]} 32. Rfc1 {[%clk
0:01:00.9]} 32... Qd6 {[%clk 0:01:07.1]} 33. Rc8 {[%clk 0:00:52.9]} 33... Ree8
{[%clk 0:01:03.2]} 34. R8c7 {[%clk 0:00:50]} 34... Re7 {[%clk 0:01:00.4]} 35.
Rc8 {[%clk 0:00:48.1]} 35... Rd7 {[%clk 0:01:00.3]} 36. R8c5 {[%clk 0:00:29.2]}
36... b6 {[%clk 0:00:55.6]} 37. Rc6 {[%clk 0:00:29.1]} 37... Qb4 {[%clk
0:00:56.3]} 38. Bb5 {[%clk 0:00:28.3]} 38... Nd6 {[%clk 0:00:43.8]} 39. Rxb6
{[%clk 0:00:24.4]} 39... Ne4 {[%clk 0:00:37.1]} 40. Qc2 {[%clk 0:00:14.4]} 40...
exd4 {[%clk 0:00:35.6]} 41. Re6 {[%clk 0:00:05.5]} 41... Rd6 {[%clk 0:00:29.7]}
42. Qc7 {[%clk 0:00:05.3]} 42... dxe3 {[%clk 0:00:22]} 43. Qf7 {[%clk
0:00:05.3]} 43... Rg8 {[%clk 0:00:10]} 44. Re8 {[%clk 0:00:04.7]} 44... Rxe8
{[%clk 0:00:03.1]} 45. Qxe8+ {[%clk 0:00:05.6]} 45... Kh7 {[%clk 0:00:04]} 46.
Qg6+ {[%clk 0:00:06.3]} 46... Kg8 {[%clk 0:00:04.4]} 47. Rc8+ {[%clk 0:00:07.2]}
1-0